lending/lending_fUSD_20260312
["ID","MTS","AMOUNT","RATE_DAILY","PERIOD"]
[408242774,1773300632471,-500.0,0.0001855,2]
[408242775,1773300632481,-500.0,0.0001855,2]
[408242776,1773300632490,-500.0,0.0001855,2]
[408242777,1773300632500,-500.0,0.0001855,2]
[408242778,1773300632511,-500.0,0.0001855,2]
[408242779,1773300632520,-500.0,0.0001855,2]
[408242780,1773300632529,-500.0,0.0001855,2]
[408242781,1773300632538,-500.0,0.0001855,2]
[408242782,1773300632547,-500.0,0.0001855,2]
[408242783,1773300632556,-500.0,0.0001855,2]
[408242784,1773300632566,-500.0,0.0001855,2]
[408242785,1773300632576,-500.0,0.0001855,2]
[408242786,1773300632586,-500.0,0.0001855,2]
[408242787,1773300632595,-500.0,0.0001855,2]
[408242788,1773300632604,-500.0,0.0001855,2]
[408242789,1773300632615,-500.0,0.0001855,2]
[408242790,1773300632624,-500.0,0.0001855,2]
[408242791,1773300632633,-500.0,0.0001855,2]
[408242792,1773300632642,-500.0,0.0001855,2]
[408242793,1773300632652,-500.0,0.0001855,2]
[408242794,1773300632661,-500.0,0.0001855,2]
[408242795,1773300632670,-500.0,0.0001855,2]
[408242796,1773300632679,-500.0,0.0001855,2]
[408242797,1773300632688,-500.0,0.0001855,2]
[408242798,1773300632698,-500.0,0.0001855,2]
[408242799,1773300632707,-500.0,0.0001855,2]
[408242800,1773300632716,-500.0,0.0001855,2]
[408242801,1773300632725,-500.0,0.0001855,2]
[408242802,1773300632734,-500.0,0.0001855,2]
[408242803,1773300632743,-500.0,0.0001855,2]
[408242804,1773300632752,-500.0,0.0001855,2]
[408242805,1773300632761,-500.0,0.0001855,2]
[408242806,1773300632771,-500.0,0.0001855,2]
[408242807,1773300632780,-500.0,0.0001855,2]
[408242808,1773300632789,-500.0,0.0001855,2]
[408242809,1773300632798,-500.0,0.0001855,2]
[408242810,1773300632808,-500.0,0.0001855,2]
[408242811,1773300632817,-500.0,0.0001855,2]
[408242812,1773300632827,-500.0,0.0001855,2]
[408242813,1773300632836,-500.0,0.0001855,2]
[408242814,1773300632845,-500.0,0.0001855,2]
[408242815,1773300632854,-500.0,0.0001855,2]
[408242816,1773300632863,-500.0,0.0001855,2]
[408242817,1773300632873,-500.0,0.0001855,2]
[408242818,1773300632882,-500.0,0.0001855,2]
[408242819,1773300632891,-500.0,0.0001855,2]
[408242820,1773300632900,-500.0,0.0001855,2]
[408242821,1773300632909,-500.0,0.0001855,2]
[408242822,1773300632919,-500.0,0.0001855,2]
[408242823,1773300632928,-541.16855222,0.0001855,2]
[408242824,1773300632937,-500.0,0.0001855,2]
[408242825,1773300632946,-500.0,0.0001855,2]
[408242826,1773300632955,-500.0,0.0001855,2]
[408242827,1773300632964,-500.0,0.0001855,2]
[408242828,1773300632973,-500.0,0.0001855,2]
[408242829,1773300632982,-500.0,0.0001855,2]
[408242830,1773300632991,-500.0,0.0001855,2]
[408242831,1773300633000,-500.0,0.0001855,2]
[408242832,1773300633010,-500.0,0.0001855,2]
[408242833,1773300633019,-500.0,0.0001855,2]
[408242834,1773300633028,-500.0,0.0001855,2]
[408242835,1773300633038,-500.0,0.0001855,2]
[408242836,1773300633047,-500.0,0.0001855,2]
[408242837,1773300633057,-382.34450487,0.0001855,2]
[408242838,1773300633066,-500.0,0.0001855,2]
[408242839,1773300633075,-500.0,0.0001855,2]
[408242840,1773300633085,-500.0,0.0001855,2]
[408242841,1773300633094,-500.0,0.0001855,2]
[408242842,1773300633103,-500.0,0.0001855,2]
[408242843,1773300633113,-500.0,0.0001855,2]
[408242844,1773300633122,-500.0,0.0001855,2]
[408242845,1773300633131,-500.0,0.0001855,2]
[408242846,1773300633141,-300.0,0.0001855,2]
[408242847,1773300633150,-500.0,0.0001855,2]
[408242848,1773300633159,-500.0,0.0001855,2]
[408242849,1773300633168,-500.0,0.0001855,2]
[408242850,1773300633177,-500.0,0.0001855,2]
[408242851,1773300633186,-500.0,0.0001855,2]
[408242852,1773300633195,-500.0,0.0001855,2]
[408242853,1773300633203,-1142.88084607,0.0001855,2]
[408242854,1773300633212,-1142.88084607,0.0001855,2]
[408242855,1773300633221,-1142.88084607,0.0001855,2]
[408242856,1773300633230,-1142.88084607,0.0001855,2]
[408242857,1773300633240,-1142.88084607,0.0001855,2]
[408242858,1773300633249,-1142.88084607,0.0001855,2]
[408242859,1773300633259,-1142.88084607,0.0001855,2]
[408242860,1773300633268,-1142.88084607,0.0001855,2]
[408242861,1773300633277,-1142.88084607,0.0001855,2]
[408242862,1773300633286,-1142.88084607,0.0001855,2]
[408242863,1773300633296,-1142.88084607,0.0001855,2]
[408242864,1773300633305,-1142.88084607,0.0001855,2]
[408242865,1773300633314,-500.0,0.0001855,2]
[408242866,1773300633323,-268.02815783,0.0001855,2]
[408242867,1773300633333,-153.9840694,0.0001855,2]
[408242868,1773300633342,-500.0,0.0001855,2]
[408242869,1773300633352,-500.0,0.0001855,2]
[408242870,1773300633361,-363.79317763,0.0001855,2]
[408242871,1773300633371,-500.0,0.0001855,2]
[408242872,1773300633382,-275.31789563,0.0001855,2]
[408242873,1773300633391,-500.0,0.0001855,2]
[408242874,1773300633401,-500.0,0.0001855,2]
[408242875,1773300633410,-285.24265642,0.0001855,2]
[408242876,1773300633419,-500.0,0.0001855,2]
[408242877,1773300633429,-500.0,0.0001855,2]
[408242878,1773300633443,-500.0,0.0001855,2]
[408242879,1773300633452,-248.19142542,0.0001855,2]
[408242880,1773300633461,-500.0,0.0001855,2]
[408242881,1773300633471,-500.0,0.0001855,2]
[408242882,1773300633482,-500.0,0.0001855,2]
[408242883,1773300633492,-500.0,0.0001855,2]
[408242884,1773300633501,-500.0,0.0001855,2]
[408242885,1773300633511,-500.0,0.0001855,2]
[408242886,1773300633520,-500.0,0.0001855,2]
[408242887,1773300633530,-500.0,0.0001855,2]
[408242888,1773300633539,-500.0,0.0001855,2]
[408242889,1773300633549,-500.0,0.0001855,2]
[408242890,1773300633559,-500.0,0.0001855,2]
[408242891,1773300633568,-500.0,0.0001855,2]
[408242892,1773300633577,-500.0,0.0001855,2]
[408242893,1773300633587,-500.0,0.0001855,2]
[408242894,1773300633596,-500.0,0.0001855,2]
[408242895,1773300633605,-500.0,0.0001855,2]
[408242896,1773300633615,-500.0,0.0001855,2]
[408242897,1773300633624,-500.0,0.0001855,2]
[408242898,1773300633634,-500.0,0.0001855,2]
[408242899,1773300633643,-500.0,0.0001855,2]
[408242900,1773300633653,-500.0,0.0001855,2]
[408242901,1773300633662,-500.0,0.0001855,2]
[408242902,1773300633672,-500.0,0.0001855,2]
[408242903,1773300633681,-500.0,0.0001855,2]
[408242904,1773300633690,-500.0,0.0001855,2]
[408242905,1773300633699,-500.0,0.0001855,2]
[408242906,1773300633709,-500.0,0.0001855,2]
[408242907,1773300633718,-500.0,0.0001855,2]
[408242908,1773300633727,-500.0,0.0001855,2]
[408242909,1773300633737,-500.0,0.0001855,2]
[408242910,1773300633746,-500.0,0.0001855,2]
[408242911,1773300633755,-500.0,0.0001855,2]
[408242912,1773300633765,-500.0,0.0001855,2]
[408242913,1773300633775,-500.0,0.0001855,2]
[408242914,1773300633784,-500.0,0.0001855,2]
[408242915,1773300633794,-500.0,0.0001855,2]
[408242916,1773300633803,-500.0,0.0001855,2]
[408242917,1773300633813,-500.0,0.0001855,2]
[408242918,1773300633822,-500.0,0.0001855,2]
[408242919,1773300633831,-500.0,0.0001855,2]
[408242920,1773300633841,-500.0,0.0001855,2]
[408242921,1773300633850,-500.0,0.0001855,2]
[408242922,1773300633859,-596.51730602,0.0001855,2]
[408242923,1773300633869,-500.0,0.0001855,2]
[408242924,1773300633879,-500.0,0.0001855,2]
[408242925,1773300633889,-500.0,0.0001855,2]
[408242926,1773300633898,-500.0,0.0001855,2]
[408242927,1773300633907,-500.0,0.0001855,2]
[408242928,1773300633917,-500.0,0.0001855,2]
[408242929,1773300633926,-500.0,0.0001855,2]
[408242930,1773300633935,-500.0,0.0001855,2]
[408242931,1773300633944,-500.0,0.0001855,2]
[408242932,1773300633954,-500.0,0.0001855,2]
[408242933,1773300633963,-542.02182038,0.0001855,2]
[408242934,1773300633973,-500.0,0.0001855,2]
[408242935,1773300633982,-500.0,0.0001855,2]
[408242936,1773300633992,-500.0,0.0001855,2]
[408242937,1773300634001,-500.0,0.0001855,2]
[408242938,1773300634010,-500.0,0.0001855,2]
[408242939,1773300634019,-500.0,0.0001855,2]
[408242940,1773300634029,-500.0,0.0001855,2]
[408242941,1773300634038,-500.0,0.0001855,2]
[408242942,1773300634047,-500.0,0.0001855,2]
[408242943,1773300634057,-500.0,0.0001855,2]
[408242944,1773300634066,-500.0,0.0001855,2]
[408242945,1773300634075,-500.0,0.0001855,2]
[408242946,1773300634084,-500.0,0.0001855,2]
[408242947,1773300634094,-200.0,0.0001855,2]
[408242948,1773300634103,-500.0,0.0001855,2]
[408242949,1773300634113,-300.0,0.0001855,2]
[408242950,1773300634123,-500.0,0.0001855,2]
[408242951,1773300634132,-500.0,0.0001855,2]
[408242952,1773300634142,-500.0,0.0001855,2]
[408242953,1773300634151,-500.0,0.0001855,2]
[408242954,1773300634160,-500.0,0.0001855,2]
[408242955,1773300634169,-500.0,0.0001855,2]
[408242956,1773300634179,-500.0,0.0001855,2]
[408242957,1773300634188,-500.0,0.0001855,2]
[408242958,1773300634197,-500.0,0.0001855,2]
[408242959,1773300634206,-500.0,0.0001855,2]
[408242960,1773300634215,-164.74675096,0.0001855,2]
[408242961,1773300634225,-500.0,0.0001855,2]
[408242962,1773300634234,-500.0,0.0001855,2]
[408242963,1773300634244,-500.0,0.0001855,2]
[408242964,1773300634253,-500.0,0.0001855,2]
[408242965,1773300634263,-500.0,0.0001855,2]
[408242966,1773300634272,-500.0,0.0001855,2]
[408242967,1773300634282,-500.0,0.0001855,2]
[408242968,1773300634292,-959.62,0.0001855,2]
[408242969,1773300634301,-500.0,0.0001855,2]
[408242970,1773300634311,-500.0,0.0001855,2]
[408242971,1773300634320,-500.0,0.0001855,2]
[408242972,1773300634329,-500.0,0.0001855,2]
[408242973,1773300634339,-500.0,0.0001855,2]
[408242974,1773300634348,-500.0,0.0001855,2]
[408242975,1773300634358,-500.0,0.0001855,2]
[408242976,1773300634367,-500.0,0.0001855,2]
[408242977,1773300634376,-500.0,0.0001855,2]
[408242978,1773300634386,-500.0,0.0001855,2]
[408242979,1773300634395,-500.0,0.0001855,2]
[408242980,1773300634405,-500.0,0.0001855,2]
[408242981,1773300634414,-500.0,0.0001855,2]
[408242982,1773300634423,-500.0,0.0001855,2]
[408242983,1773300634434,-500.0,0.0001855,2]
[408242984,1773300634444,-500.0,0.0001855,2]
[408242985,1773300634454,-500.0,0.0001855,2]
[408242986,1773300634463,-500.0,0.0001855,2]
[408242987,1773300634473,-500.0,0.0001855,2]
[408242988,1773300634482,-500.0,0.0001855,2]
[408242989,1773300634491,-500.0,0.0001855,2]
[408242990,1773300634500,-285.52,0.0001855,2]
[408242991,1773300634511,-500.0,0.0001855,2]
[408242992,1773300634521,-500.0,0.0001855,2]
[408242993,1773300634530,-500.0,0.0001855,2]
[408242994,1773300634539,-500.0,0.0001855,2]
[408242995,1773300634548,-500.0,0.0001855,2]
[408242996,1773300634557,-1418259.03439313,0.00018551,2]
[408242997,1773300634573,-1084.01352,0.00018551,2]
[408242998,1773300634583,-690.21695969,0.00018551,2]
[408243002,1773300637989,-5584.30741029,0.00018451,2]
[408243003,1773300637999,-43664.72688485,0.00018551,2]
[408243004,1773300638011,-6713.72108542,0.00018551,2]
[408243005,1773300638021,-2638.15312271,0.00018551,2]
[408243006,1773300638038,-1026950.1340342,0.00018551,2]
[408243007,1773300638047,-5099.21,0.00018551,2]
[408243008,1773300638057,-500.0,0.00018573,2]
[408243009,1773300638067,-500.0,0.00018573,2]
[408243010,1773300638076,-511.39071219,0.00018573,2]
[408243011,1773300638085,-500.83730113,0.00018573,2]
[408243012,1773300638095,-169.12765891,0.00018573,2]
[408243013,1773300638105,-548.54836002,0.00018573,2]
[408243014,1773300638114,-500.38248831,0.00018573,2]
[408243015,1773300638123,-501.16014456,0.00018573,2]
[408243016,1773300638133,-500.0,0.00018573,2]
[408243018,1773300638142,-500.0,0.00018573,2]
[408243020,1773300638151,-546.58121775,0.00018573,2]
[408243022,1773300638160,-500.0,0.00018573,2]
[408243024,1773300638169,-500.0,0.00018573,2]
[408243026,1773300638178,-502.40461556,0.00018573,2]
[408243028,1773300638187,-500.0,0.00018573,2]
[408243030,1773300638197,-500.0,0.00018573,2]
[408243032,1773300638206,-500.48871606,0.00018573,2]
[408243034,1773300638215,-500.0,0.00018573,2]
[408243036,1773300638224,-505.74549276,0.00018573,2]
[408243038,1773300638233,-500.74255847,0.00018573,2]
[408243040,1773300638242,-500.0,0.00018573,2]
[408243042,1773300638251,-500.99472326,0.00018573,2]
[408243044,1773300638260,-500.0,0.00018573,2]
[408243046,1773300638269,-502.86209366,0.00018573,2]
[408243048,1773300638278,-166.66,0.00018603,2]
[408243050,1773300638288,-18259.68170591,0.00018612,2]
[408243051,1773300638297,-500.0,0.00018631,2]
[408243053,1773300638306,-32942.6924,0.00018651,2]
[408243055,1773300638315,-1000.0,0.00018651,2]
[408243056,1773300638324,-500.28250198,0.00018673,2]
[408243058,1773300638333,-500.0,0.00018673,2]
[408243061,1773300638343,-500.28966758,0.00018673,2]
[408243062,1773300638352,-500.0,0.00018673,2]
[408243065,1773300638362,-320.7823411,0.00018741,2]
[408243066,1773300638373,-18259.68170591,0.00018773,2]
[408243068,1773300638388,-1300.47,0.00018805,2]
[408243070,1773300638397,-168.0,0.00018819,2]
[408243072,1773300638406,-500.0,0.00018824,2]
[408243074,1773300638416,-959.62,0.00018824,2]
[408243075,1773300638425,-5056.62264661,0.00018843,2]
[408243076,1773300638435,-542.41806512,0.00018871,2]
[408243077,1773300638448,-485.44567832,0.00018886,2]
[408243078,1773300638458,-485.43,0.00018886,2]
[408243079,1773300638467,-184.76415671,0.00018899,2]
[408243080,1773300638477,-197.82059334,0.00018899,3]
[408243081,1773300638486,-18259.68170591,0.00018934,2]
[408243082,1773300638495,-166.66,0.00018971,2]
[408243083,1773300638505,-166.66,0.00018971,2]
[408243084,1773300638517,-1951.37963191,0.00018999,2]
[408243085,1773300638527,-500.0,0.00018999,2]
[408243086,1773300638536,-250.0,0.00018999,2]
[408243087,1773300638545,-250.0,0.00018999,2]
[408243088,1773300638555,-250.0,0.00018999,2]
[408243089,1773300638567,-250.0,0.00018999,2]
[408243090,1773300638578,-1455.19462612,0.00018999,2]
[408243091,1773300638587,-250.0,0.00018999,2]
[408243092,1773300638597,-500.0,0.00018999,2]
[408243093,1773300638606,-250.0,0.00018999,2]
[408243094,1773300638614,-500.0,0.00018999,2]
[408243095,1773300638623,-250.0,0.00018999,2]
[408243096,1773300638633,-500.0,0.00018999,2]
[408243097,1773300638642,-250.0,0.00018999,2]
[408243098,1773300638651,-500.0,0.00018999,2]
[408243099,1773300638660,-500.0,0.00018999,2]
[408243100,1773300638669,-500.0,0.00018999,2]
[408243101,1773300638679,-500.0,0.00018999,2]
[408243102,1773300638688,-500.0,0.00018999,2]
[408243103,1773300638697,-500.0,0.00018999,2]
[408243104,1773300638706,-319.66891224,0.00018999,2]
[408243105,1773300638715,-174.61919141,0.00018999,2]
[408243106,1773300638724,-200.0,0.00018999,2]
[408243107,1773300638733,-506.76163677,0.00019,2]
[408243108,1773300638742,-202.0,0.00019006,2]
[408243109,1773300638752,-1000.95272067,0.00019021,2]
[408243110,1773300638761,-320.7823411,0.00019031,2]
[408243111,1773300638770,-202.0,0.00019069,2]
[408243112,1773300638779,-200.0,0.00019088,2]
[408243113,1773300638788,-500.0,0.00019098,2]
[408243114,1773300638797,-959.62,0.00019098,2]
[408243115,1773300638806,-1000.88951289,0.00019121,2]
[408243116,1773300638817,-1000.92951908,0.00019121,2]
[408243117,1773300638826,-1000.0,0.00019121,2]
[408243118,1773300638836,-1000.0,0.00019121,2]
[408243119,1773300638845,-1000.99041066,0.00019121,2]
[408243120,1773300638855,-271.73607655,0.00019121,2]
[408243121,1773300638864,-1000.0,0.00019178,2]
[408243122,1773300638873,-2000.0,0.000192,2]
[408243123,1773300638883,-620.0,0.00019223,2]
[408243124,1773300638892,-781.93,0.00019251,2]
[408243125,1773300638902,-11608.17435166,0.00019256,2]
[408243126,1773300638912,-554.97075426,0.00019273,2]
[408243127,1773300638923,-202.0,0.00019274,2]
[408243128,1773300638932,-202.0,0.00019317,2]
[408243129,1773300638942,-320.7823411,0.0001932,2]
[408243130,1773300638952,-166.66,0.00019339,2]
[408243131,1773300638963,-494.76551712,0.00019372,2]
[408243132,1773300638973,-959.62,0.00019372,2]
[408243133,1773300638982,-11608.17435166,0.00019417,2]
[408243134,1773300638993,-221.99,0.00019442,2]
[408243135,1773300639002,-1000.0,0.00019452,2]
[408243136,1773300639012,-47985.9525,0.00019472,2]
[408243137,1773300639022,-150.0,0.00019507,2]
[408243138,1773300639031,-150.0,0.00019507,2]
[408243139,1773300639040,-500.0,0.00019507,2]
[408243140,1773300639050,-150.0,0.00019507,2]
[408243141,1773300639060,-500.0,0.00019507,2]
[408243142,1773300639069,-500.0,0.00019507,2]
[408243143,1773300639077,-500.0,0.00019507,2]
[408243144,1773300639087,-500.0,0.00019507,2]
[408243145,1773300639098,-150.0,0.00019507,2]
[408243146,1773300639107,-500.0,0.00019507,2]
[408243147,1773300639117,-154.13550118,0.00019507,2]
[408243148,1773300639125,-150.0,0.00019507,2]
[408243149,1773300639134,-500.0,0.00019507,2]
[408243150,1773300639143,-883.0,0.00019507,2]
[408243151,1773300639152,-500.0,0.00019507,2]
[408243152,1773300639161,-150.0,0.00019507,2]
[408243153,1773300639170,-150.0,0.00019507,2]
[408243154,1773300639179,-150.0,0.00019507,2]
[408243155,1773300639188,-150.54749687,0.00019507,2]
[408243156,1773300639197,-250.0,0.00019507,2]
[408243157,1773300639206,-150.0,0.00019507,2]
[408243158,1773300639215,-500.0,0.00019507,2]
[408243159,1773300639224,-500.0,0.00019507,2]
[408243160,1773300639232,-500.0,0.00019507,2]
[408243161,1773300639241,-500.0,0.00019507,2]
[408243162,1773300639250,-504.0,0.00019507,2]
[408243163,1773300639260,-500.0,0.00019507,2]
[408243164,1773300639269,-193.31671488,0.00019507,2]
[408243165,1773300639278,-500.0,0.00019507,2]
[408243166,1773300639288,-781.93,0.00019525,2]
[408243167,1773300639297,-181.08010149,0.00019547,2]
[408243168,1773300639305,-200.0,0.00019547,2]
[408243169,1773300639315,-150.0,0.00019562,2]
[408243170,1773300639324,-150.0,0.00019562,2]
[408243171,1773300639333,-505.15710093,0.00019562,2]
[408243172,1773300639342,-150.0,0.00019562,2]
[408243173,1773300639351,-500.0,0.00019562,2]
[408243174,1773300639360,-502.95539105,0.00019562,2]
[408243175,1773300639369,-505.92642885,0.00019562,2]
[408243176,1773300639378,-500.0,0.00019562,2]
[408243177,1773300639387,-150.0,0.00019562,2]
[408243178,1773300639396,-500.0,0.00019562,2]
[408243179,1773300639405,-500.0,0.00019562,2]
[408243180,1773300639414,-883.0,0.00019562,2]
[408243181,1773300639423,-500.0,0.00019562,2]
[408243182,1773300639432,-179.81278619,0.00019562,2]
[408243183,1773300639445,-150.0,0.00019562,2]
[408243184,1773300639454,-150.0,0.00019562,2]
[408243185,1773300639463,-150.0,0.00019562,2]
[408243186,1773300639471,-500.0,0.00019562,2]
[408243187,1773300639481,-500.0,0.00019562,2]
[408243188,1773300639490,-500.0,0.00019562,2]
[408243189,1773300639501,-500.0,0.00019562,2]
[408243190,1773300639512,-504.0,0.00019562,2]
[408243191,1773300639522,-500.0,0.00019562,2]
[408243192,1773300639531,-500.0,0.00019562,2]
[408243193,1773300639540,-11608.17435166,0.00019578,2]
[408243194,1773300639549,-168.0,0.00019579,2]
[408243195,1773300639560,-166.66,0.00019597,2]
[408243196,1773300639571,-1155.4573174,0.000196,2]
[408243197,1773300639580,-245.0,0.00019602,14]
[408243198,1773300639590,-285.0,0.00019602,14]
[408243199,1773300639601,-320.7823411,0.0001961,2]
[408243200,1773300639611,-150.0,0.00019617,2]
[408243201,1773300639621,-150.0,0.00019617,2]
[408243202,1773300639630,-202.57005248,0.00019617,2]
[408243203,1773300639640,-600.51346149,0.00019617,2]
[408243204,1773300639649,-500.0,0.00019617,2]
[408243205,1773300639658,-211.63369229,0.00019617,2]
[408243206,1773300639667,-500.0,0.00019617,2]
[408243207,1773300639676,-400.0,0.00019617,2]
[408243208,1773300639685,-883.0,0.00019617,2]
[408243209,1773300639694,-458.31593509,0.00019617,2]
[408243210,1773300639703,-150.0,0.00019617,2]
[408243211,1773300639712,-150.0,0.00019617,2]
[408243212,1773300639721,-150.0,0.00019617,2]
[408243213,1773300639729,-500.0,0.00019617,2]
[408243214,1773300639738,-335.32479978,0.00019617,2]
[408243215,1773300639748,-500.0,0.00019617,2]
[408243216,1773300639756,-500.0,0.00019617,2]
[408243217,1773300639765,-504.0,0.00019617,2]
[408243218,1773300639774,-500.0,0.00019617,2]
[408243219,1773300639783,-500.0,0.00019617,2]
[408243220,1773300639792,-1988.31717727,0.00019617,2]
[408243221,1773300639801,-168.0,0.00019634,2]
[408243222,1773300639810,-200.0,0.00019636,2]
[408243223,1773300639820,-959.62,0.00019645,2]
[408243224,1773300639829,-150.0,0.00019671,2]
[408243225,1773300639838,-150.0,0.00019671,2]
[408243226,1773300639847,-500.0,0.00019671,2]
[408243227,1773300639857,-500.0,0.00019671,2]
[408243228,1773300639868,-883.0,0.00019671,2]
[408243229,1773300639878,-150.0,0.00019671,2]
[408243230,1773300639887,-150.0,0.00019671,2]
[408243231,1773300639896,-500.0,0.00019671,2]
[408243232,1773300639906,-500.0,0.00019671,2]
[408243233,1773300639915,-500.0,0.00019671,2]
[408243234,1773300639924,-504.0,0.00019671,2]
[408243235,1773300639932,-500.0,0.00019671,2]
[408243236,1773300639942,-500.0,0.00019671,2]
[408243237,1773300639951,-1300.47,0.000197,2]
[408243238,1773300639960,-1999.0,0.00019726,2]
[408243239,1773300639970,-150.0,0.00019726,2]
[408243240,1773300639979,-200.0,0.00019726,2]
[408243241,1773300639990,-500.0,0.00019726,2]
[408243242,1773300639999,-500.0,0.00019726,2]
[408243243,1773300640010,-883.0,0.00019726,2]
[408243244,1773300640020,-150.0,0.00019726,2]
[408243245,1773300640031,-500.0,0.00019726,2]
[408243246,1773300640040,-500.0,0.00019726,2]
[408243247,1773300640051,-500.0,0.00019726,2]
[408243248,1773300640062,-504.0,0.00019726,2]
[408243249,1773300640073,-500.0,0.00019726,2]
[408243250,1773300640083,-310.84679252,0.00019726,2]
[408243251,1773300640093,-11608.17435166,0.00019739,2]
[408243252,1773300640102,-1373.9315,0.00019764,2]
[408243253,1773300640112,-151.40872416,0.00019781,2]
[408243254,1773300640123,-500.0,0.00019781,2]
[408243255,1773300640132,-500.0,0.00019781,2]
[408243256,1773300640142,-883.0,0.00019781,2]
[408243257,1773300640153,-250.0,0.00019781,2]
[408243258,1773300640163,-500.0,0.00019781,2]
[408243259,1773300640173,-500.0,0.00019781,2]
[408243260,1773300640182,-500.0,0.00019781,2]
[408243261,1773300640192,-504.0,0.00019781,2]
[408243262,1773300640202,-500.0,0.00019781,2]
[408243263,1773300640211,-200.0,0.00019783,2]
[408243264,1773300640223,-1280.0,0.00019783,2]
[408243265,1773300640233,-1213.0,0.00019783,2]
[408243266,1773300640242,-783.65,0.00019798,2]
[408243267,1773300640251,-150.0,0.000198,14]
[408243268,1773300640259,-150.0,0.000198,14]
[408243269,1773300640268,-150.0,0.000198,14]
[408243270,1773300640278,-251.0,0.000198,14]
[408243271,1773300640288,-339.41964,0.000198,2]
[408243272,1773300640297,-339.41965,0.000198,2]
[408243273,1773300640307,-4571.5357,0.00019802,2]
[408243274,1773300640317,-6859.36018721,0.0001981,2]
[408243275,1773300640326,-221746.06355311,0.0001981,2]
[408243276,1773300640335,-200.0,0.0001981,2]
[408243277,1773300640345,-250.0,0.0001982,2]
[408243278,1773300640355,-500.0,0.00019836,2]
[408243279,1773300640364,-500.0,0.00019836,2]
[408243280,1773300640374,-883.0,0.00019836,2]
[408243281,1773300640383,-500.0,0.00019836,2]
[408243282,1773300640392,-500.0,0.00019836,2]
[408243283,1773300640402,-500.0,0.00019836,2]
[408243284,1773300640411,-504.0,0.00019836,2]
[408243285,1773300640421,-500.0,0.00019836,2]
[408243286,1773300640431,-200.0,0.00019836,2]
[408243287,1773300640445,-200.0,0.0001984,2]
[408243288,1773300640454,-200.0,0.0001987,2]
[408243289,1773300640463,-163.03277323,0.00019873,2]
[408243290,1773300640473,-500.0,0.00019873,2]
[408243291,1773300640483,-162.49936812,0.00019873,2]
[408243292,1773300640492,-500.0,0.00019873,2]
[408243293,1773300640501,-500.0,0.00019873,2]
[408243294,1773300640512,-177.60774502,0.00019873,2]
[408243295,1773300640521,-501.08688956,0.00019873,2]
[408243296,1773300640530,-500.0,0.00019873,2]
[408243297,1773300640539,-501.48789279,0.00019873,2]
[408243298,1773300640548,-500.0,0.00019873,2]
[408243299,1773300640557,-500.0,0.00019873,2]
[408243300,1773300640566,-161.95043897,0.00019873,2]
[408243301,1773300640575,-187.08160234,0.00019873,2]
[408243302,1773300640584,-500.0,0.00019873,2]
[408243303,1773300640593,-500.0,0.00019873,2]
[408243304,1773300640602,-500.0,0.00019873,2]